{"text_format":"1","workbook":"xlsx","n_sheets":13,"sheets":["Acceuil","Budget","CC","CA","CV","CP","Cadres de Concertation","Tutelle","Marchés","Services Délégués","Autres données","Récapitulatif","Indicateurs"],"not_rendered":{"charts":0,"images":2,"macros":1,"external_links":0,"defined_names":0,"comments":0,"pivot_tables":0},"unopened":[],"bounds":{"document_bytes":16777216,"sheet_cells":100000,"rows_first":2000,"rows_last":500,"rows_between":2000,"halvings":0,"cell_chars":16384,"cell_head_chars":4096},"cells_cut":0,"cells_raw":0,"read":"whole","date_system":"1900"}

{"sheet":"Acceuil","index":0,"n_rows":23,"n_cols":16,"rows_kept":23,"cut":false,"hidden":false,"merged":[[6,4,6,18],[7,4,7,18],[9,4,9,18],[16,4,16,18]]}
[]
[]
[]
[]
[]
[]
[null,null,null,null,"COMITE INTERMINISTERIEL DE PILOTAGE DE LA POLITIQUE NATIONALE DE DECENTRALISATION ET DE DECONCENTRATION \n(CIP-PONADEC)"]
[null,null,null,null,"SECRETARIAT PERMANENT"]
[]
[null,null,null,null,"Calcul de l'Indice de bonne Gouvernance Locale (IGL)"]
[]
[null,null,null,null,null,"Département ","COUFFO",null,"Commune ","DOGBO",null,null,null,null,"Année : ",2019]
[]
[]
[]
[]
[null,null,null,null,"Informations à saisir par catégorie"]
[]
[null,null,null,null,null,null,"Budget",null,null,null,null,"Cadres de Concertation"]
[null,null,null,null,null,null,"Conseil Communal",null,null,null,null,"Tutelle"]
[null,null,null,null,null,null,"Conseil d'Arrondissement",null,null,null,null,"Marchés"]
[null,null,null,null,null,null,"Conseil de Village",null,null,null,null,"Services délégués"]
[null,null,null,null,null,null,"Commissions Permanentes",null,null,null,null,"Autres données"]

{"sheet":"Budget","index":1,"n_rows":5,"n_cols":14,"rows_kept":5,"cut":false,"hidden":false,"merged":[[1,0,1,2],[1,3,1,9],[1,10,1,13],[2,3,2,5],[2,0,3,0],[2,1,3,1],[2,2,3,2],[2,6,3,6],[2,7,3,7],[2,8,3,8],[2,9,3,9],[2,10,3,10],[2,11,3,11],[2,12,3,12],[2,13,3,13]]}
["Retour à l'accueil"]
["Prévision",null,null,"Réalisation",null,null,null,null,null,null,"Autres données financieres"]
["Montant du budget ","Recette fiscales","PAI","Dépenses d'investissement",null,null,"Dépenses totales de fonctionnement","Dépenses d'entretien des équipements et ouvrages","Recettes fiscales ","PAI ","Montant des ressources propres de l'année 2018","Montant des ressources propres de l'année 2019","Montant des cotisations versées à échéance (Intercommunalité et Association de communes)","Montant des cotisations dues à échéance (Intercommunalité et Association de communes)"]
[null,null,null,"Ressources propres (Auto financement)","Investissement provenant de la coopération décentralisée","Autres ressources"]
[1187232688,266814793,4418728000,13834751,13834317,211144668,250854798,16388718,187429804,312670230,245000754,265212209,1000000,1800000]

{"sheet":"CC","index":2,"n_rows":9,"n_cols":9,"rows_kept":9,"cut":false,"hidden":false,"merged":[[0,0,0,5],[1,0,1,5],[2,0,2,2],[2,4,3,5],[3,0,3,2]]}
["Retour à l'accueil"]
["Tenue des Sessions ordinaires "]
["Nombre de réunions de municipalité tenues",null,null,5]
["Nombre d'élus du Conseil Communal",null,null,19]
["Sessions","Nombre d'élus présents","Date début session","Date fin session","Date affichage relevé session","Production du rapport d'activités du Maire ",null,"dif","delai"]
["Session N°1",17,"2019-03-28","2019-03-29","2019-04-02","OUI",null,{"$f":"IF(OR(D6=\"\",E6=\"\"),-1,DATEDIF(D6,E6,\"d\"))","v":4},{"$f":"IF(OR(H6<0,H6>8),0,1)","v":1}]
["Session N°2",16,"2019-06-27","2019-06-28","2019-07-03","OUI",null,{"$f":"IF(OR(D7=\"\",E7=\"\"),-1,DATEDIF(D7,E7,\"d\"))","v":5},{"$f":"IF(OR(H7<0,H7>8),0,1)","v":1}]
["Session N°3",18,"2019-09-30","2019-09-30","2019-10-02","OUI",null,{"$f":"IF(OR(D8=\"\",E8=\"\"),-1,DATEDIF(D8,E8,\"d\"))","v":2},{"$f":"IF(OR(H8<0,H8>8),0,1)","v":1}]
["Session N°4",19,"2019-11-18","2019-11-19","2019-12-23","OUI",null,{"$f":"IF(OR(D9=\"\",E9=\"\"),-1,DATEDIF(D9,E9,\"d\"))","v":34},{"$f":"IF(OR(H9<0,H9>8),0,1)","v":0}]

{"sheet":"CA","index":3,"n_rows":9,"n_cols":2,"rows_kept":9,"cut":false,"hidden":false,"merged":[[0,0,0,1]]}
["Retour à l'accueil"]
["Arrondissements","Nombre de sessions de conseils d’arrondissement tenues"]
["AYOMI"]
["DEVE"]
["HONTON"]
["LOKOGOHOUE"]
["MADJRE"]
["TOTCHANGNI CENTRE"]
["TOTA"]

{"sheet":"CV","index":4,"n_rows":69,"n_cols":5,"rows_kept":69,"cut":false,"hidden":false,"merged":[[42,0,44,0],[45,0,68,0],[4,0,13,0],[14,0,19,0],[20,0,25,0],[26,0,33,0],[34,0,41,0],[0,0,0,9],[2,3,2,4],[1,3,1,4],[1,2,3,2],[1,0,3,0],[1,1,3,1]]}
["Retour à l'accueil"]
["Arrondissements","Villages","Nombre de réunions de conseils de village tenues au cours de l’année","Section Villagoise\\urbaine de Gestion Fonctiere (SVGF et SUGF)"]
[null,null,null,"Enquetes Publiques Contradictoires (EPC)"]
[null,null,null,"Nombre de demandes effectuées","Nombre de demandes réalisées"]
["AYOMI","AGBEDRANFO",null,0,0]
[null,"AVEDJIN",null,0,0]
[null,"AYOMI CENTRE",null,0,0]
[null,"GBANNAVE",null,0,0]
[null,"KETCHANDJI-KPOLEDJI",null,0,0]
[null,"KPODAHA CENTRE",null,0,0]
[null,"KPODAHA DEKA",null,0,0]
[null,"TOKPOTA",null,0,0]
[null,"ZOHOUDJI",null,0,0]
[null,"ZOKPEDJI",null,0,0]
["DEVE","ADIDEVO",null,0,0]
[null,"AGNAVO",null,0,0]
[null,"DEVE-HOMEY",null,1,0]
[null,"GBAKEHOUE",null,1,1]
[null,"KPODJI",null,2,1]
[null,"ZOHOUDJI",null,1,0]
["HONTON","ATCHANHOUE",null,1,1]
[null,"AVEGODE",null,0,0]
[null,"CODJOHOUE",null,4,4]
[null,"DADOHOUE",null,2,2]
[null,"KOUTIME",null,0,0]
[null,"KPOHA",null,2,2]
["LOKOGOHOUE","HEDJAME",null,0,0]
[null,"HOUNDROME",null,0,0]
[null,"HOUNSA",null,2,2]
[null,"LOKOGOHOUE",null,2,2]
[null,"MIDANGBE",null,1,1]
[null,"SEGBA",null,0,0]
[null,"TOULEHOUDJI",null,2,2]
[null,"VEHIDJI",null,2,2]
["MADJRE","ADANDRO-AKODE",null,1,1]
[null,"AYESSO",null,1,1]
[null,"BOTAGBE",null,4,3]
[null,"FAFADJI",null,1,1]
[null,"GODOHOU",null,3,3]
[null,"KENAVO",null,0,0]
[null,"MADJRE CENTRE",null,6,6]
[null,"TOGANNOU",null,0,0]
["TOTCHANGNI CENTRE","ALLADA",null,3,3]
[null,"GNIGBE",null,0,0]
[null,"TOTCHANGNI",null,0,0]
["TOTA","ACHITOU",null,0,0]
[null,"AGBEGNIDOHOUE",null,0,0]
[null,"AHOMEY",null,0,0]
[null,"DAHOUE",null,9,9]
[null,"DEGUIHOUE",null,10,10]
[null,"DEKANDJI",null,3,3]
[null,"FAMBOHOUE",null,0,0]
[null,"FONCOME AGANDANNONHOUE",null,4,4]
[null,"FONCOME AGBOHOUE",null,7,7]
[null,"FONCOME GOUHOUN",null,0,0]
[null,"FONCOME TETEHOUE",null,0,0]
[null,"HOUEDJAMEY",null,7,7]
[null,"HOUNGLOUI",null,0,0]
[null,"KEGBEHOUE",null,0,0]
[null,"KENOUHOUE",null,5,0]
[null,"KPODAVE",null,17,17]
[null,"KPOGODOU",null,3,2]
[null,"LOKOGBA",null,20,20]
[null,"MADANKANMEY",null,0,0]
[null,"TOTA BALIME",null,7,7]
[null,"TOTA KPODJI",null,4,4]
[null,"ZAPHI GNAMAMEY",null,5,5]
[null,"ZAPHI HOUEGANME",null,1,1]
[null,"ZAPHI HOUNSA",null,0,0]

{"sheet":"CP","index":5,"n_rows":16,"n_cols":42,"rows_kept":16,"cut":false,"hidden":false,"merged":[[2,36,2,38],[2,0,3,0],[2,1,3,1],[2,2,3,2],[1,0,1,2],[1,3,1,38],[2,3,2,5],[2,6,2,8],[2,9,2,11],[2,12,2,14],[2,15,2,17],[2,18,2,20],[2,21,2,23],[2,24,2,26],[2,27,2,29],[2,30,2,32],[2,33,2,35]]}
["Retour à l'accueil"]
["Tenue des sessions ordinaires des commissions permanentes"]
["Commissions permanentes (CP)","Nom de la commission","Effectif des membres ","Réunion N°1",null,null,"Réunion N°2",null,null,"Réunion N°3",null,null,"Réunion N°4",null,null,"Réunion N°5",null,null,"Réunion N°6",null,null,"Réunion N°7",null,null,"Réunion N°8",null,null,"Réunion N°9",null,null,"Réunion N°10",null,null,"Réunion N°11",null,null,"Réunion N°12"]
[null,null,null,"Nombre de membres presents ","Nombre de propositions faites ","Nombre de propositions réalisées par le Maire","Nombre de membres presents ","Nombre de propositions faites ","Nombre de propositions réalisées par le Maire","Nombre de membres presents ","Nombre de propositions faites ","Nombre de propositions réalisées par le Maire","Nombre de membres presents ","Nombre de propositions faites ","Nombre de propositions réalisées par le Maire","Nombre de membres presents ","Nombre de propositions faites ","Nombre de propositions réalisées par le Maire","Nombre de membres presents ","Nombre de propositions faites ","Nombre de propositions réalisées par le Maire","Nombre de membres presents ","Nombre de propositions faites ","Nombre de propositions réalisées par le Maire","Nombre de membres presents ","Nombre de propositions faites ","Nombre de propositions réalisées par le Maire","Nombre de membres presents ","Nombre de propositions faites ","Nombre de propositions réalisées par le Maire","Nombre de membres presents ","Nombre de propositions faites ","Nombre de propositions réalisées par le Maire","Nombre de membres presents ","Nombre de propositions faites ","Nombre de propositions réalisées par le Maire","Nombre de membres presents ","Nombre de propositions faites ","Nombre de propositions réalisées par le Maire"]
["CP N°1","Commission des Affaires Economiques et Financieres (CAEF)",3,2,3,1,3,3,1,null,null,null,null,null,null,null,null,null,null,null,null,null,null,null,null,null,null,null,null,null,null,null,null,null,null,null,null,null,null,null,null,{"$f":"C5*COUNTA(D5,G5,J5,M5,S5,V5,Y5,AB5,AE5,AH5,AK5)","v":6}]
["CP N°2","Commission des Affaires Domaniales et Environnementales (CADE)",3,3,2,2,3,2,1,null,null,null,null,null,null,null,null,null,null,null,null,null,null,null,null,null,null,null,null,null,null,null,null,null,null,null,null,null,null,null,null,{"$f":"C6*COUNTA(D6,#REF!,G6,M6,S6,V6,Y6,AB6,AE6,AH6,AK6)","v":9}]
["CP N°3","Commission des Affaires Sociales et Culturelles (CASC)",3,3,2,1,2,3,2,3,2,1,3,0,0,null,null,null,null,null,null,null,null,null,null,null,null,null,null,null,null,null,null,null,null,null,null,null,null,null,null,12]
["CP N°4","Commission des Affaires Culturelles, sportives et Sociales (CACS)",3,3,2,0,3,2,1,3,3,1,null,null,null,null,null,null,null,null,null,null,null,null,null,null,null,null,null,null,null,null,null,null,null,null,null,null,null,null,null,9]
["CP N°5","Commission des Affaires Environnementales et d’Assainissement (CAEA).",3,3,4,1,3,1,0,null,null,null,null,null,null,null,null,null,null,null,null,null,null,null,null,null,null,null,null,null,null,null,null,null,null,null,null,null,null,null,null,6]
["CP N°6","Commission Santé et Education (CSE) ",3,3,2,2,3,2,1,2,1,0,null,null,null,null,null,null,null,null,null,null,null,null,null,null,null,null,null,null,null,null,null,null,null,null,null,null,null,null,null,9]
["CP N°7",null,null,null,null,null,null,null,null,null,null,null,null,null,null,null,null,null,null,null,null,null,null,null,null,null,null,null,null,null,null,null,null,null,null,null,null,null,null,null,null,0]
["CP N°8",null,null,null,null,null,null,null,null,null,null,null,null,null,null,null,null,null,null,null,null,null,null,null,null,null,null,null,null,null,null,null,null,null,null,null,null,null,null,null,null,0]
["CP N°9",null,null,null,null,null,null,null,null,null,null,null,null,null,null,null,null,null,null,null,null,null,null,null,null,null,null,null,null,null,null,null,null,null,null,null,null,null,null,null,null,0]
["CP N°10",null,null,null,null,null,null,null,null,null,null,null,null,null,null,null,null,null,null,null,null,null,null,null,null,null,null,null,null,null,null,null,null,null,null,null,null,null,null,null,null,0]
["Nombre",null,{"$f":"COUNT(C5:C14)","v":6},6,6,6,6,6,6,3,3,3,1,1,1,0,0,0,0,0,0,0,0,0,0,0,0,0,0,0,0,0,0,0,0,0,0,0,0,null,null,{"$f":"SUM(AP5:AP14)","v":51}]
["Effectif",null,{"$f":"SUM(C5:C14)","v":18},17,15,7,17,13,6,8,6,2,3,0,0,0,0,0,0,0,0,0,0,0,0,0,0,0,0,0,0,0,0,0,0,0,0,0,0]

{"sheet":"Cadres de Concertation","index":6,"n_rows":18,"n_cols":12,"rows_kept":18,"cut":false,"hidden":false,"merged":[[0,0,0,1],[6,3,17,11],[2,3,3,4],[1,0,1,11],[2,0,2,2],[2,5,2,11],[3,0,3,1],[4,0,4,1],[3,5,4,5],[3,6,4,6],[3,7,4,7],[3,8,4,8],[3,9,4,9],[3,10,4,10],[3,11,4,11],[5,3,5,4]]}
["Retour à l'accueil"]
["Tenue des Cadres de Concertation"]
[" Mairie-SDE",null,null,null,null,"Autres Cadres "]
["Effectif des membres du Cadre de Concertation Mairie-SDE",null,32,null,null,"Education","Eau, Hygiène et Assainissement","Agricole","Maire et OSC","Nutrition","Sport","Autres"]
["Nombre de sessions prévues",null,12]
["Sessions","Effectif présent","Date","Nombre de séances tenues",null,9,null,8,4,4,2,2]
["Session N°1",24,"2019-01-07"]
["Session N°2",23,"2019-02-04"]
["Session N°3",27,"2019-03-04"]
["Session N°4",29,"2019-04-01"]
["Session N°5",30,"2019-05-06"]
["Session N°6"]
["Session N°7"]
["Session N°8"]
["Session N°9"]
["Session N°10",20,"2019-10-07"]
["Session N°11",24,"2019-11-04"]
["Session N°12",19,"2019-12-02"]

{"sheet":"Tutelle","index":7,"n_rows":9,"n_cols":8,"rows_kept":9,"cut":false,"hidden":false,"merged":[[5,4,8,4],[5,5,5,6],[6,5,6,6],[7,5,7,6],[8,5,8,6],[1,4,4,4],[1,5,1,6],[2,5,2,6],[3,5,3,6],[4,5,4,6],[8,0,8,2],[0,0,0,3],[1,0,1,3],[2,0,2,1],[6,0,6,3],[7,0,7,2]]}
["Retour à l'accueil"]
["Participation aux CDCC",null,null,null,"Budget communal (Budget primitif)","Le budget est transmis ou pas.",null,"TRANSMIS"]
["Effectif (Maire et ses adjoints)",null,3,null,null,"Date d'adoption du budget",null,"2018-11-22"]
["Sessions","Effectif présent","Date début session","Date fin session",null,"Date de transmission du budget à la tutelle",null,"2018-11-30"]
["CDCC N°1",3,"2019-01-23","2019-01-23",null,"Date d'approbation du budget par la tutelle"]
["CDCC N°2",3,"2019-10-15","2019-10-15","Compte Administratif ","Le compte administratif est  transmis ou pas.",null,"TRANSMIS"]
["Conformité des actes",null,null,null,null,"Date d'adoption du compte administratif de l'année 2018",null,"2019-05-14"]
["Nombre d’actes conformes",null,null,15,null,"Date de transmission à la tutelle",null,"2019-06-07"]
["Nombre d’actes soumis pour approbation",null,null,17,null,"Date d'approbation du compte administratif par la tutelle"]

{"sheet":"Marchés","index":8,"n_rows":16,"n_cols":58,"rows_kept":16,"cut":false,"hidden":false,"merged":[[0,0,0,7],[5,0,5,3],[3,0,3,3],[2,0,2,3],[1,0,1,3],[1,5,5,5],[4,0,4,3],[6,2,6,3],[6,4,6,5],[6,6,6,7],[6,0,8,0],[6,1,8,1],[7,2,7,3],[7,4,7,5],[7,6,7,7],[6,8,6,9],[7,8,7,9],[6,10,6,11],[7,10,7,11],[6,12,6,13],[7,12,7,13],[6,14,6,15],[7,14,7,15],[6,16,6,17],[7,16,7,17],[6,18,6,19],[7,18,7,19],[6,20,6,21],[7,20,7,21],[6,22,6,23],[7,22,7,23],[6,24,6,25],[7,24,7,25],[6,26,6,27],[7,26,7,27],[6,28,6,29],[7,28,7,29],[6,30,6,31],[7,30,7,31],[6,32,6,33],[7,32,7,33],[6,34,6,35],[7,34,7,35],[6,36,6,37],[7,36,7,37],[6,38,6,39],[7,38,7,39],[6,40,6,41],[7,40,7,41],[6,42,6,43],[7,42,7,43],[6,44,6,45],[7,44,7,45],[6,46,6,47],[7,46,7,47],[6,48,6,49],[7,48,7,49],[6,56,6,57],[7,56,7,57],[6,50,6,51],[7,50,7,51],[6,52,6,53],[7,52,7,53],[6,54,6,55],[7,54,7,55]]}
["Retour à l'accueil"]
["Type de commune",null,null,null,"Commune ordinaire"]
["Plan de passation des marchés publics publiés",null,null,null,"OUI"]
["Nombre de marchés publics passés hors plan de passation des marchés ",null,null,null,0]
["Nombre de marchés conclus dans l'année",null,null,null,28]
["Nombre de marchés conclus dans l’année ayant respecté les procédures",null,null,null,28]
["Mode de passation","Délai de passation"," Marché N°1",null," Marché N°2",null," Marché N°3",null,"Marché N°4",null,"Marché N°5",null,"Marché N°6",null,"Marché N°7",null,"Marché N°8",null,"Marché N°9",null,"Marché N°10",null,"Marché N°11",null,"Marché N°12",null,"Marché N°13",null,"Marché N°14",null,"Marché N°15",null,"Marché N°16",null,"Marché N°17",null,"Marché N°18",null,"Marché N°19",null,"Marché N°20",null,"Marché N°21",null,"Marché N°22",null,"Marché N°23",null,"Marché N°24",null,"Marché N°25",null,"Marché N°26",null,"Marché N°27",null,"Marché N°28"]
[null,null,"Construction du centre de jeunes, de la culture  et de loisirs de Deve + fourniture de trois cent (300) chaises plastiques",null,"Construction de deux (02) dalots doubles (200x200x700) x2 sur l’axe Godohou-Noumonvihoue (arrondissement de Madjrè) et (150x150x700) x2 sur l’axe Lokogohoué centre-Zohoudji (arrondissement de Lokogohoué)",null,"Construction de la piste dénommée « ROUTE DE FER » sur le site touristique archéologique de GOUNOUDOUDJI",null,"Construction d'un module de trois (03) salles de classes avec bureau et magasin plus un bloc de latrine institutionnelle à quatre (04) cabines à l’Ecole Primaire Publique (EPP) de Fontinsa dans l’arrondissement de Tota",null,"Construction de la clôture du domaine du Centre de Santé de Foncomè (Kodji) sur quatre cent quatre vingt cinq (485)  mètres linéaires",null,"Construction d’une aire de séchage de 20x10 m² plus achat de bâche et ingrédients de provende au centre d’incubation des jeunes entrepreneurs agricole de Dogbo.",null,"Fourniture et pose d’une pompe immergée plus tuyaux FORADUC pour le compte de l’Adduction d’Eau Villageoise (AEV) de Honton",null,"Fourniture et pose de cinq (05) feux de signalisation au rond point de Dogbo ",null,"Acquisition de deux (02) photocopieuses, deux (02) imprimantes couleurs et deux (02) imprimantes blancs noire",null,"Construction d’un abri plus magasin pour granuleuse au centre d’incubation des jeunes entrepreneurs agricole de Dogbo.",null,"Travaux d’Entretien Courant (EC) des Infrastructures de Transport Rural (ITR) par l’approche participative avec la méthode de Haute Intensité de Main d’œuvre (HIMO) dans la Commune de DOGBO lot n°2 ",null,"Travaux d’Entretien Courant (EC) des Infrastructures de Transport Rural (ITR) par l’approche participative avec la méthode de Haute Intensité de Main d’œuvre (HIMO) dans la Commune de DOGBO lot n°1 ",null,"Construction d'un module de trois (03) salles de classes avec bureau et magasin à l’Ecole Primaire Publique (EPP) de Codjohoué (Honton quartier) dans l’arrondissement de Honton",null,"Construction d'un module de trois (03) salles de classes avec bureau et magasin à l’Ecole Primaire Publique (EPP) de Codjohoué (Honton quartier) dans l’arrondissement de Honton",null,"Construction d'un bloc de cinq (05) boutiques Rez-De-Chaussée (RDC) avec fondations type R+1, dans le marché central de Dogbo lot N°1",null,"Construction d'un bloc de cinq (05) boutiques Rez-De-Chaussée (RDC) avec fondations type R+1, dans le marché central de Dogbo lot N°2",null,"Construction de deux (02) étangs de 200 m3 par étang (20mx10mx1m) au niveau du centre d’incubation agro pastoral des jeunes entrepreneurs agricoles de Dogbo ",null,"Acquisition de pièces de rechange et de réparation de niveleuse de la mairie de Dogbo.",null,"Elaboration du Schéma Directeur d\u0092Aménagement Communal (SDAC) de la commune de Dogbo",null,"Réhabilitation et d’aménagement des pistes Tota-Ayomi-Deve (tronçon carrefour Dogbo Ahomey-forage artésien de Gbannavé) sur une distance de 1.8 km, ",null,"Etudes techniques de faisabilité des travaux de pavage et d’assainissement de rues dans le centre ville de Tota commune de Dogbo",null,"Aménagement et viabilisation de l’enceinte et de la devanture du parc gros porteur de Dogbo avec la construction d’un hangar dans l’enceinte et d’une guérite à l’entré",null,"Acquisition et pose de lampadaires et pièces de rechange pour l’éclairage public dans la commune de Dogbo",null,"Construction d’une salle de classe plus équipement à l’Ecole Maternelle (EM) de Dangnonhoué dans l’arrondissement de Madjrè",null,"Etudes technique pour la réhabilitation et d’aménagement des pistes Tota-Ayomi-Deve (tronçon carrefour Dogbo Ahomey-forage artésien de Gbannavé) sur une distance de 1.8 km, ",null,"Etudes technique pour la réhabilitation et d’aménagement des pistes dans les arrondissements de Madjrè, Lokogohoué et Totchangni,",null,"Construction d’un local pour élevage (poulailler de 12.3mx2.2m) au niveau du centre d’incubation agro pastoral des jeunes entrepreneurs agricoles de Dogbo sur financement FADeC AFFECTE AGRICULTURE 2018",null,"Acquisition de mobiliers pour le compte de l’école Primaire Publique (EPP) de FONTINSA, sur financement  FADeC Affecté MEMP 2018"]
[null,86,"Type de marchés publics ","Nombre de jours consacrés à la passation","Type de marchés publics ","Nombre de jours consacrés à la passation","Type de marchés publics ","Nombre de jours consacrés à la passation","Type de marchés publics ","Nombre de jours consacrés à la passation","Type de marchés publics ","Nombre de jours consacrés à la passation","Type de marchés publics ","Nombre de jours consacrés à la passation","Type de marchés publics ","Nombre de jours consacrés à la passation","Type de marchés publics ","Nombre de jours consacrés à la passation","Type de marchés publics ","Nombre de jours consacrés à la passation","Type de marchés publics ","Nombre de jours consacrés à la passation","Type de marchés publics ","Nombre de jours consacrés à la passation","Type de marchés publics ","Nombre de jours consacrés à la passation","Type de marchés publics ","Nombre de jours consacrés à la passation","Type de marchés publics ","Nombre de jours consacrés à la passation","Type de marchés publics ","Nombre de jours consacrés à la passation","Type de marchés publics ","Nombre de jours consacrés à la passation","Type de marchés publics ","Nombre de jours consacrés à la passation","Type de marchés publics ","Nombre de jours consacrés à la passation","Type de marchés publics ","Nombre de jours consacrés à la passation","Type de marchés publics ","Nombre de jours consacrés à la passation","Type de marchés publics ","Nombre de jours consacrés à la passation","Type de marchés publics ","Nombre de jours consacrés à la passation","Type de marchés publics ","Nombre de jours consacrés à la passation","Type de marchés publics ","Nombre de jours consacrés à la passation","Type de marchés publics ","Nombre de jours consacrés à la passation","Type de marchés publics ","Nombre de jours consacrés à la passation","Type de marchés publics ","Nombre de jours consacrés à la passation","Type de marchés publics ","Nombre de jours consacrés à la passation"]
["Appel Offre Ouvert",46,"Travaux",30,null,null,null,null,null,null,null,null,null,null,null,null,null,null,null,null,null,null,"Travaux ",30,"Travaux",30,null,null,null,null,null,null,null,null,null,null,null,null,"Prestation Intellectuelle",30,"Travaux",30]
["Demande de renseignement",27,null,null,"Travaux",10,null,null,"Travaux",10,"Travaux",10,null,null,null,null,null,null,null,null,null,null,null,null,null,null,"Travaux",10,"Travaux",10,"Travaux",10,"Travaux",10]
["Demande de cotation",65,null,null,null,null,"Travaux",5,null,null,null,null,"Travaux",5,"Fourniture",5,"Fourniture",5,"Founiture",5,"Travaux",5,null,null,null,null,null,null,null,null,null,null,null,null,"Travaux",5,"Fourniture\nGré à gré",5,null,null,null,null,"Prestation Intellectuelle",5,"Travaux",5,"Fourniture",5,"Travaux",5,"Prestation Intellectuelle",5,"Prestation Intellectuelle",5,"Travaux",5,"Fourniture",5]
[null,null,null,{"$f":"IF(C10=\"\",0,IF(D10<=$B10,1,0))","v":1},null,{"$f":"IF(E10=\"\",0,IF(F10<=$B10,1,0))","v":0},null,{"$f":"IF(G10=\"\",0,IF(H10<=$B10,1,0))","v":0},null,{"$f":"IF(I10=\"\",0,IF(J10<=$B10,1,0))","v":0},null,{"$f":"IF(K10=\"\",0,IF(L10<=$B10,1,0))","v":0},null,{"$f":"IF(M10=\"\",0,IF(N10<=$B10,1,0))","v":0},null,{"$f":"IF(O10=\"\",0,IF(P10<=$B10,1,0))","v":0},null,{"$f":"IF(Q10=\"\",0,IF(R10<=$B10,1,0))","v":0},null,{"$f":"IF(S10=\"\",0,IF(T10<=$B10,1,0))","v":0},null,{"$f":"IF(U10=\"\",0,IF(V10<=$B10,1,0))","v":0},null,{"$f":"IF(W10=\"\",0,IF(X10<=$B10,1,0))","v":1},null,{"$f":"IF(Y10=\"\",0,IF(Z10<=$B10,1,0))","v":1},null,{"$f":"IF(AA10=\"\",0,IF(AB10<=$B10,1,0))","v":0},null,{"$f":"IF(AC10=\"\",0,IF(AD10<=$B10,1,0))","v":0},null,{"$f":"IF(AE10=\"\",0,IF(AF10<=$B10,1,0))","v":0},null,{"$f":"IF(AG10=\"\",0,IF(AH10<=$B10,1,0))","v":0},null,{"$f":"IF(AI10=\"\",0,IF(AJ10<=$B10,1,0))","v":0},null,{"$f":"IF(AK10=\"\",0,IF(AL10<=$B10,1,0))","v":0},null,{"$f":"IF(AM10=\"\",0,IF(AN10<=$B10,1,0))","v":1},null,{"$f":"IF(AO10=\"\",0,IF(AP10<=$B10,1,0))","v":1},null,{"$f":"IF(AQ10=\"\",0,IF(AR10<=$B10,1,0))","v":0},null,{"$f":"IF(AS10=\"\",0,IF(AT10<=$B10,1,0))","v":0},null,{"$f":"IF(AU10=\"\",0,IF(AV10<=$B10,1,0))","v":0},null,{"$f":"IF(AW10=\"\",0,IF(AX10<=$B10,1,0))","v":0},null,{"$f":"IF(AY10=\"\",0,IF(AZ10<=$B10,1,0))","v":0},null,{"$f":"IF(BA10=\"\",0,IF(BB10<=$B10,1,0))","v":0},null,{"$f":"IF(BC10=\"\",0,IF(BD10<=$B10,1,0))","v":0},null,{"$f":"IF(BE10=\"\",0,IF(BF10<=$B10,1,0))","v":0}]
[null,null,null,{"$f":"IF(C11=\"\",0,IF(D11<=$B11,1,0))","v":0},null,{"$f":"IF(E11=\"\",0,IF(F11<=$B11,1,0))","v":1},null,{"$f":"IF(G11=\"\",0,IF(H11<=$B11,1,0))","v":0},null,{"$f":"IF(I11=\"\",0,IF(J11<=$B11,1,0))","v":1},null,{"$f":"IF(K11=\"\",0,IF(L11<=$B11,1,0))","v":1},null,{"$f":"IF(M11=\"\",0,IF(N11<=$B11,1,0))","v":0},null,{"$f":"IF(O11=\"\",0,IF(P11<=$B11,1,0))","v":0},null,{"$f":"IF(Q11=\"\",0,IF(R11<=$B11,1,0))","v":0},null,{"$f":"IF(S11=\"\",0,IF(T11<=$B11,1,0))","v":0},null,{"$f":"IF(U11=\"\",0,IF(V11<=$B11,1,0))","v":0},null,{"$f":"IF(W11=\"\",0,IF(X11<=$B11,1,0))","v":0},null,{"$f":"IF(Y11=\"\",0,IF(Z11<=$B11,1,0))","v":0},null,{"$f":"IF(AA11=\"\",0,IF(AB11<=$B11,1,0))","v":1},null,{"$f":"IF(AC11=\"\",0,IF(AD11<=$B11,1,0))","v":1},null,{"$f":"IF(AE11=\"\",0,IF(AF11<=$B11,1,0))","v":1},null,{"$f":"IF(AG11=\"\",0,IF(AH11<=$B11,1,0))","v":1},null,{"$f":"IF(AI11=\"\",0,IF(AJ11<=$B11,1,0))","v":0},null,{"$f":"IF(AK11=\"\",0,IF(AL11<=$B11,1,0))","v":0},null,{"$f":"IF(AM11=\"\",0,IF(AN11<=$B11,1,0))","v":0},null,{"$f":"IF(AO11=\"\",0,IF(AP11<=$B11,1,0))","v":0},null,{"$f":"IF(AQ11=\"\",0,IF(AR11<=$B11,1,0))","v":0},null,{"$f":"IF(AS11=\"\",0,IF(AT11<=$B11,1,0))","v":0},null,{"$f":"IF(AU11=\"\",0,IF(AV11<=$B11,1,0))","v":0},null,{"$f":"IF(AW11=\"\",0,IF(AX11<=$B11,1,0))","v":0},null,{"$f":"IF(AY11=\"\",0,IF(AZ11<=$B11,1,0))","v":0},null,{"$f":"IF(BA11=\"\",0,IF(BB11<=$B11,1,0))","v":0},null,{"$f":"IF(BC11=\"\",0,IF(BD11<=$B11,1,0))","v":0},null,{"$f":"IF(BE11=\"\",0,IF(BF11<=$B11,1,0))","v":0}]
[null,null,null,{"$f":"IF(C12=\"\",0,IF(D12<=$B12,1,0))","v":0},null,{"$f":"IF(E12=\"\",0,IF(F12<=$B12,1,0))","v":0},null,{"$f":"IF(G12=\"\",0,IF(H12<=$B12,1,0))","v":1},null,{"$f":"IF(I12=\"\",0,IF(J12<=$B12,1,0))","v":0},null,{"$f":"IF(K12=\"\",0,IF(L12<=$B12,1,0))","v":0},null,{"$f":"IF(M12=\"\",0,IF(N12<=$B12,1,0))","v":1},null,{"$f":"IF(O12=\"\",0,IF(P12<=$B12,1,0))","v":1},null,{"$f":"IF(Q12=\"\",0,IF(R12<=$B12,1,0))","v":1},null,{"$f":"IF(S12=\"\",0,IF(T12<=$B12,1,0))","v":1},null,{"$f":"IF(U12=\"\",0,IF(V12<=$B12,1,0))","v":1},null,{"$f":"IF(W12=\"\",0,IF(X12<=$B12,1,0))","v":0},null,{"$f":"IF(Y12=\"\",0,IF(Z12<=$B12,1,0))","v":0},null,{"$f":"IF(AA12=\"\",0,IF(AB12<=$B12,1,0))","v":0},null,{"$f":"IF(AC12=\"\",0,IF(AD12<=$B12,1,0))","v":0},null,{"$f":"IF(AE12=\"\",0,IF(AF12<=$B12,1,0))","v":0},null,{"$f":"IF(AG12=\"\",0,IF(AH12<=$B12,1,0))","v":0},null,{"$f":"IF(AI12=\"\",0,IF(AJ12<=$B12,1,0))","v":1},null,{"$f":"IF(AK12=\"\",0,IF(AL12<=$B12,1,0))","v":1},null,{"$f":"IF(AM12=\"\",0,IF(AN12<=$B12,1,0))","v":0},null,{"$f":"IF(AO12=\"\",0,IF(AP12<=$B12,1,0))","v":0},null,{"$f":"IF(AQ12=\"\",0,IF(AR12<=$B12,1,0))","v":1},null,{"$f":"IF(AS12=\"\",0,IF(AT12<=$B12,1,0))","v":1},null,{"$f":"IF(AU12=\"\",0,IF(AV12<=$B12,1,0))","v":1},null,{"$f":"IF(AW12=\"\",0,IF(AX12<=$B12,1,0))","v":1},null,{"$f":"IF(AY12=\"\",0,IF(AZ12<=$B12,1,0))","v":1},null,{"$f":"IF(BA12=\"\",0,IF(BB12<=$B12,1,0))","v":1},null,{"$f":"IF(BC12=\"\",0,IF(BD12<=$B12,1,0))","v":1},null,{"$f":"IF(BE12=\"\",0,IF(BF12<=$B12,1,0))","v":1}]
[null,null,null,{"$f":"SUM(D13:D15)","v":1},null,{"$f":"SUM(F13:F15)","v":1},null,{"$f":"SUM(H13:H15)","v":1},null,{"$f":"SUM(J13:J15)","v":1},null,{"$f":"SUM(L13:L15)","v":1},null,{"$f":"SUM(N13:N15)","v":1},null,{"$f":"SUM(P13:P15)","v":1},null,{"$f":"SUM(R13:R15)","v":1},null,{"$f":"SUM(T13:T15)","v":1},null,{"$f":"SUM(V13:V15)","v":1},null,{"$f":"SUM(X13:X15)","v":1},null,{"$f":"SUM(Z13:Z15)","v":1},null,{"$f":"SUM(AB13:AB15)","v":1},null,{"$f":"SUM(AD13:AD15)","v":1},null,{"$f":"SUM(AF13:AF15)","v":1},null,{"$f":"SUM(AH13:AH15)","v":1},null,{"$f":"SUM(AJ13:AJ15)","v":1},null,{"$f":"SUM(AL13:AL15)","v":1},null,{"$f":"SUM(AN13:AN15)","v":1},null,{"$f":"SUM(AP13:AP15)","v":1},null,{"$f":"SUM(AR13:AR15)","v":1},null,{"$f":"SUM(AT13:AT15)","v":1},null,{"$f":"SUM(AV13:AV15)","v":1},null,{"$f":"SUM(AX13:AX15)","v":1},null,{"$f":"SUM(AZ13:AZ15)","v":1},null,{"$f":"SUM(BB13:BB15)","v":1},null,{"$f":"SUM(BD13:BD15)","v":1},null,{"$f":"SUM(BF13:BF15)","v":1}]

{"sheet":"Services Délégués","index":9,"n_rows":5,"n_cols":30,"rows_kept":5,"cut":false,"hidden":false,"merged":[[0,0,0,21],[1,0,1,5],[1,6,1,17],[2,0,2,1],[2,2,2,3],[2,4,2,5],[2,6,2,7],[2,8,2,9],[2,10,2,11],[2,12,2,13],[2,14,2,15],[2,16,2,17],[2,18,2,19],[1,18,1,25],[2,24,2,25],[2,20,2,21],[2,22,2,23],[1,26,2,27],[1,28,2,29]]}
["Retour à l'accueil"]
["EAU",null,null,null,null,null,"ASSAINISSEMENT",null,null,null,null,null,null,null,null,null,null,null,"SERVICES MARCHANDS",null,null,null,null,null,null,null,"PANNEAUX PUBLICITAIRES",null,"TOTAL"]
["AEV",null,"FPM",null,"PEA",null,"Entretien des voies urbaines",null,"Eclairage public",null,"Collecte et traitement des déchets",null,"Evacuation des eaux usées",null,"Gestion des cimétieres",null,"Gestion des espaces verts",null,"Gestion des marchés",null,"Gestion des abattoirs",null,"Promotion du tourisme",null,"Gestions des gares routieres"]
["PREVUES","DELEGUEES","PREVUES","DELEGUEES","PREVUES","DELEGUEES","PREVUS","DELEGUES","PREVUS","DELEGUES","PREVUS","DELEGUES","PREVUS","DELEGUES","PREVUS","DELEGUES","PREVUS","DELEGUES","PREVUS","DELEGUES","PREVUS","DELEGUES","PREVUS","DELEGUES","PREVUS","DELEGUES","PREVUS","DELEGUES","PREVUS","DELEGUES"]
[15,5,94,73,0,0,null,0,0,0,0,0,0,0,0,0,0,0,0,0,0,0,0,0,0,0,1,1,{"$f":"SUM(A5,C5,E5,G5,I5,K5,M5,O5,Q5,S5,U5,W5,Y5,AA5)","v":110},{"$f":"SUM(B5,D5,F5,H5,J5,L5,N5,P5,R5,T5,V5,X5,Z5,AB5)","v":79}]

{"sheet":"Autres données","index":10,"n_rows":37,"n_cols":4,"rows_kept":37,"cut":false,"hidden":false,"merged":[[0,0,0,3],[1,0,1,2],[18,0,18,1],[19,0,19,1],[26,0,26,1],[2,0,3,1],[4,0,5,1],[6,0,7,1],[8,0,9,1],[14,0,17,1],[10,0,13,0],[10,1,12,1],[13,1,13,2],[27,0,27,1],[31,0,32,1],[33,0,34,1],[35,0,36,1],[20,0,21,1],[22,0,23,1],[24,0,25,1],[28,0,30,1]]}
["Retour à l'accueil"]
["Données à collecter",null,null,"Valeurs"]
["Fonctionalité des services de la mairie",null,"Nombre de services prévus.",13]
[null,null,"Nombre de services fonctionnels",12]
["Manuel de procédure",null,"Existence du manuel de procédure","OUI"]
[null,null,"Manuel de procédure actualisé.","NON"]
["Evaluation du personnel",null,"Nombre de personnes évalué",42]
[null,null,"Effectif du personnel",42]
["Adequation profil/poste",null,"Nombre de postes occupés dans la commune",18]
[null,null,"Nombre d'agents dont le profil correspond au poste occupé",16]
["Données Foncieres","Commission de Gestion foncière (COGEF)","Existence de la COGEF","OUI"]
[null,null,"Nombre d'Attestation de  Détention Coutumiere (ADC) demandé",126]
[null,null,"Nombre d'Attestation de  Détention Coutumiere (ADC) traité",126]
[null,"Nombre de contentieux fonciers impliquant la commune",null,5]
["Système d'information ",null,"Existence d’un système de classement et d’archivage","NON"]
[null,null,"Existence d’une personne en charge du classement des archivages","OUI"]
[null,null,"Existence d’un local dédié à l’archivage","OUI"]
[null,null,"Existence de documents archivés.","OUI"]
["Nombre de délégations",null,"Nombre de délégations de signature pris.",2]
["Attributions  de pouvoir",null,"Nombre d'attributions  de pouvoir pris.",5]
["Séances de reddition de comptes",null,"Nombre   de séances tenues",2]
[null,null,"Nombre de séances prévues.",2]
["Activités spécifiques en faveur des femmes ",null,"Nombre  d’activités spécifiques réalisées en faveur des femmes ",2]
[null,null,"Nombre d’activités réalisées dans le PTA",2]
["Informations sur les prestations de la commune",null,"Existence d’un lieu publique dédié à l'informations sur les prestations de la commune","OUI"]
[null,null,"Existence d'une personne en charge de l'information","OUI"]
["SDAC en cours de validité",null,"Existence  ou non d'un SDAC ","NON"]
["PDC en cours de validité",null,"Existence ou non d’un PDC","OUI"]
["Suivi évaluation des PTA/PAI/PAD",null,"Nombre de séances de suivi évaluation des PTA",1]
[null,null,"Nombre de séances de suivi évaluation des PAI"]
[null,null,"Nombre de séances de suivi évaluation des PAD",1]
["Infrastructures économiques et marchandes",null,"Nombre réalisées en année 2019",10]
[null,null,"Nombre réalisées en année 2018",16]
["TBS",null,"Existence  d’un TBS actualisé ","NON"]
[null,null,"Date d’actualisation"]
["Coopération décentralisée",null,"Nombre  d’accord actif",1]
[null,null,"Nombre d’activités réalisées provenants de ces accords ",2]

{"sheet":"Récapitulatif","index":11,"n_rows":93,"n_cols":6,"rows_kept":93,"cut":false,"hidden":true,"merged":[[0,0,0,1],[1,0,1,1],[2,0,2,1],[3,0,3,1],[4,0,4,1],[5,0,5,1],[6,0,6,1],[7,0,7,1],[8,0,8,1],[9,0,9,1],[10,0,10,1],[11,0,11,1],[12,0,12,1],[13,0,13,1],[14,0,14,1],[15,0,15,1],[16,0,16,1],[17,0,17,1],[18,0,18,1],[19,0,19,1],[20,0,20,1],[21,0,21,1],[22,0,22,1],[23,0,23,1],[24,0,24,1],[25,0,25,1],[26,0,26,1],[27,0,27,1],[28,0,28,1],[29,0,29,1],[30,0,30,1],[31,0,31,1],[32,0,32,1],[33,0,33,1],[34,0,34,1],[38,0,38,1],[39,0,39,1],[40,0,40,1],[41,0,41,1],[42,0,42,1],[43,0,43,1],[44,0,44,1],[45,0,45,1],[46,0,46,1],[47,0,47,1],[48,0,48,1],[49,0,49,1],[50,0,50,1],[51,0,51,1],[52,0,52,1],[53,0,53,1],[54,0,54,1],[55,0,55,1],[56,0,56,1],[57,0,57,1],[64,0,64,1],[65,0,65,1],[66,0,66,1],[67,0,67,1],[58,0,58,1],[59,0,59,1],[60,0,60,1],[61,0,61,1],[62,0,62,1],[35,0,37,0],[78,0,78,1],[81,0,81,1],[82,0,82,1],[83,0,83,1],[73,0,73,1],[74,0,74,1],[75,0,75,1],[76,0,76,1],[77,0,77,1],[68,0,68,1],[69,0,69,1],[70,0,70,1],[71,0,71,1],[72,0,72,1],[63,0,63,1],[91,0,91,1],[92,0,92,1],[79,0,79,1],[80,0,80,1],[85,0,85,1],[88,0,88,1],[90,0,90,1],[86,0,86,1],[87,0,87,1],[89,0,89,1],[84,0,84,1]]}
["Données à traiter",null,"Valeurs"]
["Nombre de sessions ordinaires tenues",null,{"$f":"COUNTA(CC!C6:C9)","v":4}]
["Nombre de services prévus.",null,{"$f":"'Autres données'!D3","v":13}]
["Nombre de services existant doté en personnel.",null,{"$f":"'Autres données'!D4","v":12}]
["Nombre d’élus du conseil communal",null,{"$f":"CC!D4","v":19}]
["Nombre de conseillers présents à chaque conseil communal",null,{"$f":"SUMIF(CC!C6:C9,\"<>\",CC!B6:B9)","v":70}]
["Existence du manuel de procédure actualisé.",null,{"$f":"IF(OR('Autres données'!D5=\"NON\",'Autres données'!D5=\"\"),0,IF('Autres données'!D6=\"OUI\",1,0.5))","v":0.5}]
["Nombre de fiches d’évaluation du personnel évalué dans l’année.",null,{"$f":"'Autres données'!D7","v":42}]
["Nombre de personnes à évaluer.",null,{"$f":"'Autres données'!D8","v":42}]
["Nombre de commissions permanentes existantes.",null,{"$f":"CP!C15","v":6}]
["Nombre de sessions des commissions permamentes",null,{"$f":"SUM(CP!D15,CP!G15,CP!J15,CP!M15,CP!P15,CP!V15,CP!Y15,CP!AB15,CP!AE15,CP!AH15,CP!AK15)","v":16}]
["Nombre présents commission permanente",null,{"$f":"SUM(CP!D16,CP!G16,CP!J16,CP!M16,CP!P16,CP!V16,CP!Y16,CP!AB16,CP!AE16,CP!AH16,CP!AK16)","v":45}]
["Nombre de propositions formulées par les commissions permanentes",null,{"$f":"SUM(CP!E16,CP!H16,CP!K16,CP!N16,CP!Q16,CP!T16,CP!W16,CP!Z16,CP!AC16,CP!AF16,CP!AI16,CP!AL16)","v":34}]
["Nombre de propositions formulées par les commissions permanentes réalisées.",null,{"$f":"SUM(CP!F16,CP!I16,CP!L16,CP!O16,CP!R16,CP!U16,CP!X16,CP!AA16,CP!AD16,CP!AG16,CP!AJ16,CP!AM16)","v":15}]
["Nombre de postes occupés",null,{"$f":"'Autres données'!D9","v":18}]
["Nombre de postes occupés correspondant au profil recherché",null,{"$f":"'Autres données'!D10","v":16}]
["Existence ou non d’un système de documentation et d’archivage",null,{"$f":"IF('Autres données'!D15=\"OUI\",1,0)","v":0}]
["Existence ou non d’une personne en charge de la documentation et d’archivage",null,{"$f":"IF('Autres données'!D16=\"OUI\",1,0)","v":1}]
["Existence ou non d’un local dédié à la documentation et d’archivage",null,{"$f":"IF('Autres données'!D17=\"OUI\",1,0)","v":1}]
["Existence ou non de document archivés.",null,{"$f":"IF('Autres données'!D18=\"OUI\",1,0)","v":1}]
["Nombre de services publics susceptibles d’être délégués",null,{"$f":"'Services Délégués'!AC5","v":110}]
["Nombre de services publics délégués dans l’année",null,{"$f":"'Services Délégués'!AD5","v":79}]
["Nombre total de rapports produits dans l’année",null,{"$f":"COUNTIF(CC!F6:F9,\"=OUI\")","v":4}]
["Nombre total de rapports à produire dans l’année.",null,{"$f":"C2","v":4},"nombre de session dans l'année =4"]
["Nombre de réunions de la municipalité ",null,{"$f":"CC!D3","v":5}]
["Nombre de réunions prévues",null,12,"limité à 12"]
["Nombre total de sessions de conseils d’arrondissement tenues au cours de l’année",null,{"$f":"SUM(CA!B3:B50)","v":0},"somme dans CA"]
["Nombre d’arrondissements",null,7]
["Nombre total de réunions de conseils de village tenues au cours de l’année",null,{"$f":"SUM(CV!C5:C100)","v":0},"somme d&ns CV"]
["Nombre de villages",null,65]
["Nombre de documents ou d’arrêtés  portant délégation de signature pris.",null,{"$f":"'Autres données'!D19","v":2}]
["Nombre de document ou arrêtés portant délégation de pouvoir pris.",null,{"$f":"'Autres données'!D20","v":5}]
["Montant du budget prévisionnel",null,{"$f":"Budget!A5","v":1187232688}]
["Montant du Budget Consommé",null,{"$f":"E37+C39","v":489668534}]
["Recette fiscales previsionnelles",null,{"$f":"Budget!B5","v":266814793}]
["Dépenses d'investissement","Ressources propres",{"$f":"Budget!D5","v":13834751}]
[null,"Investissement provenant de la coopération décentralisée",{"$f":"Budget!E5","v":13834317},null,{"$f":"SUM(C36:C38)","v":238813736}]
[null,"Autres ressources",{"$f":"Budget!F5","v":211144668}]
["Dépenses totales de fonctionnement",null,{"$f":"Budget!G5","v":250854798}]
["Dépenses d'entretien des équipements et ouvrages",null,{"$f":"Budget!H5","v":16388718}]
["Montant des ressources propres de l'année n-1",null,{"$f":"Budget!K5","v":245000754}]
["Montant des ressources propres de l'année n",null,{"$f":"Budget!L5","v":265212209}]
["Recettes fiscales recouvrées",null,{"$f":"Budget!I5","v":187429804}]
["Montant des cotisations versées à échéance",null,{"$f":"Budget!M5","v":1000000}]
["Montant des cotisations dues à échéance",null,{"$f":"Budget!N5","v":1800000}]
["Nombre de marchés conclus dans l’année",null,{"$f":"Marchés!E5","v":28}]
[{"$f":"Marchés!A3","v":"Plan de passation des marchés publics publiés"},null,{"$f":"IF(Marchés!E3=\"OUI\",1,0)","v":1}]
[{"$f":"Marchés!A4:D4","v":"Nombre de marchés publics passés hors plan de passation des marchés "},null,{"$f":"Marchés!E4","v":0},{"$f":"IF(Marchés!E4=\"\",0,IF(Marchés!E4=0,1,0))","v":1}]
["Nombre de marchés conclus dans l’année et ayant respecté les procédures.",null,{"$f":"Marchés!E6","v":28}]
["Délai moyen de passation des marchés publics communaux",null,{"$f":"IF(C46=0,0,D50/C46)","v":1},{"$f":"SUM(Marchés!$D$16:$XY$16)","v":28}]
["Nombre de fois où les relevés des délibérations affichés ",null,{"$f":"COUNTA(CC!E6:E9)","v":4}]
["Délai d’affichage",null,{"$f":"SUM(CC!I6:I9)/C2","v":0.75},"8 jours maxi aprs la fin de la session"]
["Nombre de séances de reddition de comptes",null,{"$f":"'Autres données'!D21","v":2}]
["Nombre de séances de reddition de comptes prévus.",null,{"$f":"'Autres données'!D22","v":2}]
["Nombre d’actions spécifiques réalisées en faveur des femmes",null,{"$f":"'Autres données'!D23","v":2}]
["Nombre d’actions spécifiques réalisées dans le PTA",null,{"$f":"'Autres données'!D24","v":2}]
[{"$f":"'Autres données'!C25","v":"Existence d’un lieu publique dédié à l'informations sur les prestations de la commune"},null,{"$f":"IF('Autres données'!D25=\"OUI\",1,0)","v":1}]
[{"$f":"'Autres données'!C26","v":"Existence d'une personne en charge de l'information"},null,{"$f":"IF('Autres données'!D26=\"OUI\",1,0)","v":1}]
["Nombre de cadres de concertation.",null,{"$f":"COUNTA('Cadres de Concertation'!F6:L6)","v":6},{"$f":"IF(C59<=0,0,IF(C59>3,1,C59/4))","v":1}]
["Nombre moyen de réunions du cadre de concertation tenu",null,{"$f":"SUM('Cadres de Concertation'!F6:L6)/C59","v":4.833333333333333},{"$f":"IF(C60<=0.5,0,IF(C60<1.5,0.25,IF(C60<2.5,0.5,IF(C60<4,0.75,1))))","v":1}]
["Existence ou non d’un SDAC.",null,{"$f":"IF('Autres données'!D27=\"OUI\",1,0)","v":0}]
["Existence ou non d’un PDC",null,{"$f":"IF('Autres données'!D28=\"OUI\",1,0)","v":1}]
["Montant PAI prévision",null,{"$f":"Budget!C5","v":4418728000}]
["Montant PAI réalisé",null,{"$f":"Budget!J5","v":312670230}]
["Nombre de séances de suivi évaluation des PTA/PAI/PAD",null,{"$f":"SUM('Autres données'!D29:D31)","v":2}]
["Nombre d’infrastructures économiques et marchandes réalisées en année n",null,{"$f":"'Autres données'!D32","v":10}]
["Nombre d’infrastructures économiques et marchandes réalisées en année n-1",null,{"$f":"'Autres données'!D33","v":16}]
["Nombre d'EPC demandé (village)",null,{"$f":"SUM(CV!D5:D191)","v":144},null,null,"somme"]
["Nombre d'EPC réalisé (Village)",null,{"$f":"SUM(CV!E5:E191)","v":134}]
["Nombre de ADC demandé (Commune-Autre données)",null,{"$f":"'Autres données'!D12","v":126}]
["Nombre de ADC réalisé (Commune-Autre données)",null,{"$f":"'Autres données'!D13","v":126}]
["Existence ou inexistence d’un tableau de bord social actualisé ",null,{"$f":"IF('Autres données'!D34=\"OUI\",1,0)","v":0}]
["Date d’actualisation du tableau de bord social",null,{"$f":"'Autres données'!D35","v":"00:00:00"}]
["Existence d'un tableau de bord",null,{"$f":"'Autres données'!D34","v":"NON"}]
["Nombre  d’ accord de coopération décentralisée.",null,{"$f":"IF('Autres données'!D36<1,0,IF('Autres données'!D36=1,0.5,1))","v":0.5}]
["Nombre d’activités des accords de coopération décentralisées réalisées.",null,{"$f":"IF('Autres données'!D37<1,0,IF('Autres données'!D37<3,0.5,1))","v":0.5}]
["Nombre de conflits fonciers impliquant la commune",null,{"$f":"IF('Autres données'!D14=\"\",\"\",'Autres données'!D14)","v":5},{"$f":"IF(C77=\"\",0,IF(C77=0,1,IF(C77<=3,0.75,IF(C77<=8,0.5,IF(C77<=15,0.25,0)))))","v":0.5}]
["Nombre de participation du maire ou de son représentant au CDCC au cours de l’année",null,{"$f":"COUNTIF(Tutelle!B5:B6,\">0\")","v":2},"feuille tutelle (compter le nombre de lignes 5 ou 6 rempli"]
["Nombre de CDCC tenus dans l’année.",null,{"$f":"COUNTA(Tutelle!C5:C6)","v":2},"fixer à 2"]
["Nombre total de présence du maire ou de ses adjoints au CDCC",null,{"$f":"SUMIF(Tutelle!C5:C6,\"<>\",Tutelle!B5:B6)","v":6}]
["Nombre total attendu (Maire et ses adjoints) pour toutes les sessions",null,{"$f":"C79*Tutelle!C3","v":6}]
["Nombre d’actes communaux conformes en une année",null,{"$f":"Tutelle!D8","v":15}]
["Nombre d’actes communaux soumis à la tutelle en un an",null,{"$f":"Tutelle!D9","v":17}]
["Le budget est transmis ou pas.",null,{"$f":"IF(Tutelle!H2=\"TRANSMIS\",1,0)","v":1}]
["Délai de transmission du budget après adoption par le conseil communal",null,{"$f":"IF(Budget!Q5=\"\",0,IF(Budget!Q5<=DATE(Acceuil!P12,3,31),1,0))","v":0}]
["Délai d'approbation du budget par la tutelle",null,{"$f":"IF(OR(Tutelle!H4=\"\",Tutelle!H5=\"\"),0,IF(Tutelle!H5<=EDATE(Tutelle!H4,1),1,0))","v":0},"si<1mois, 1, 0 sinon"]
["Le compte administratif est  transmis ou pas.",null,{"$f":"IF(Tutelle!H6=\"TRANSMIS\",1,0)","v":1}]
["Délai de transmission du compte administratif  après adoption par le conseil communal",null,{"$f":"IF(Tutelle!H7=\"\",0,IF(Tutelle!H7<=DATE(Acceuil!P12+1,6,30),1,0))","v":1}]
["Délai d'approbation du compte administratif  par la tutelle",null,{"$f":"IF(OR(Tutelle!H8=\"\",Tutelle!H9=\"\"),0,IF(Tutelle!H9<=EDATE(Tutelle!H8,1),1,0))","v":0}]
["Nombre de réunions du cadre de concertation  prévu (Mairie + SDE)",null,{"$f":"'Cadres de Concertation'!C5","v":12}]
["Nombre de réunions du cadre de concertation  tenu (Mairie + SDE)",null,{"$f":"COUNTA('Cadres de Concertation'!C7:C18)","v":8},null,{"$f":"C91/C90","v":0.66666666666666663},{"$f":"C92/C93","v":0.765625}]
["Nombre total des membres présents (Mairie + SDE)",null,{"$f":"SUMIF('Cadres de Concertation'!C7:C18,\"<>\",'Cadres de Concertation'!B7:B18)","v":196}]
["Nombre total des membres attendus (Mairie + SDE)",null,{"$f":"'Cadres de Concertation'!C4*Récapitulatif!C91","v":256}]

{"sheet":"Indicateurs","index":12,"n_rows":45,"n_cols":4,"rows_kept":45,"cut":false,"hidden":true,"merged":[[0,0,14,0],[15,0,25,0],[26,0,30,0],[31,0,39,0],[40,0,44,0]]}
["D1",1,"Taux de realisation des sessions ordinaires du conseil communal",{"$f":"Récapitulatif!C2/4","v":1}]
[null,2,"Taux de services fonctionnels",{"$f":"Récapitulatif!C4/Récapitulatif!C3","v":0.92307692307692313}]
[null,3,"Taux de participation des élus aux conseils communaux",{"$f":"Récapitulatif!C6/(Récapitulatif!C5*Récapitulatif!C2)","v":0.92105263157894735}]
[null,4,"Existance d'un manuel de procedure à jour",{"$f":"Récapitulatif!C7","v":0.5}]
[null,5,"Taux de personnes évaluées",{"$f":"Récapitulatif!C8/Récapitulatif!C9","v":1}]
[null,6,"Taux de commissions permanentes fonctionnelles",{"$f":"((Récapitulatif!C11/Récapitulatif!C10)+(Récapitulatif!C12/CP!AP15)+(Récapitulatif!C14/Récapitulatif!C13))/3","v":1.3300653594771241}]
[null,7,"Taux d'adéquation profil/poste",{"$f":"Récapitulatif!C16/Récapitulatif!C15","v":0.88888888888888884}]
[null,8,"Fonctionalité du système de classement et d'archivage",{"$f":"SUM(Récapitulatif!C17:C20)/4","v":0.75}]
[null,9,"Taux de services publics locaux en gestion déléguée",{"$f":"Récapitulatif!C22/Récapitulatif!C21","v":0.71818181818181814}]
[null,10,"Taux de realisation des rapports d'activités du maire",{"$f":"Récapitulatif!C23/Récapitulatif!C24","v":1}]
[null,11,"Taux de tenu des reunions de municipalité",{"$f":"Récapitulatif!C25/Récapitulatif!C26","v":0.41666666666666669}]
[null,12,"Taux moyen de tenue des sessions du conseil d'arrondissement",{"$f":"Récapitulatif!C27/Récapitulatif!C28","v":0}]
[null,13,"Taux moyen de tenue des sessions du conseil de villages",{"$f":"Récapitulatif!C29/Récapitulatif!C30","v":0}]
[null,14,"Nombre de délégation de signature du maire aux adjoints",{"$f":"Récapitulatif!C31","v":2}]
[null,15,"Nombre de délégation de pouvoir éffectué par le maire",{"$f":"Récapitulatif!C32","v":5}]
["D2",1,"Taux d'éxecution du budget communal",{"$f":"Récapitulatif!C34/Récapitulatif!C33","v":0.41244529311679462}]
[null,2,"Taux d'autofinancement des Investissements",{"$f":"Récapitulatif!C36/Récapitulatif!E37","v":5.7931135920925421E-2}]
[null,3,"Part des Investissements dans les dépenses totales de la commune",{"$f":"Récapitulatif!E37/Récapitulatif!C34","v":0.48770488487218172}]
[null,4,"Part des dépenses d'entretien des équipements et ouvrages dans les depenses de fonctionnement",{"$f":"Récapitulatif!C40/Récapitulatif!C39","v":6.533149108832273E-2}]
[null,5,"Adoption du budget dans les délais",{"$f":"IF(Tutelle!H3=\"\",0,IF(Tutelle!H3<DATE(Acceuil!P12,1,1),1,0))","v":1}]
[null,6,"Respect du délai de vote du compte administratif",{"$f":"IF(Tutelle!H7=\"\",0,IF(Tutelle!H7<=DATE(Acceuil!P12,6,30),1,0))","v":1}]
[null,7,"Taux d'accroissement des ressources propres",{"$f":"(Récapitulatif!C42-Récapitulatif!C41)/Récapitulatif!C41","v":8.249548080982641E-2}]
[null,8,"Taux de recouvrement fiscal",{"$f":"Récapitulatif!C43/Récapitulatif!C35","v":0.70247156048802739}]
[null,9,"délai moyen de passation des marchés publics communaux",{"$f":"Récapitulatif!C50/Récapitulatif!C46","v":3.5714285714285712E-2}]
[null,10,"Existance des plans de passation des marchés validés et publiés",{"$f":"(Récapitulatif!C47+Récapitulatif!D48)/2","v":1}]
[null,11,"Ratio des marchés publics ayant respecté les procédures",{"$f":"Récapitulatif!C49/Récapitulatif!C46","v":1}]
["D3",1,"Affichage des relevés des décisions du Conseil Communal dans les délai",{"$f":"((Récapitulatif!C51/Récapitulatif!C2)+Récapitulatif!C52)/2","v":0.875}]
[null,2,"Taux de réalisation des seances de reddition de compte",{"$f":"Récapitulatif!C53/Récapitulatif!C54","v":1}]
[null,3,"Nombre d'actions spécifiques en faveur des femmes au cours de l'année",{"$f":"Récapitulatif!C55/Récapitulatif!C56","v":1}]
[null,4,"Existance d'un mecanisme d'information du public par rapport aux prestations de la commune",{"$f":"(Récapitulatif!C57+Récapitulatif!C58)/2","v":1}]
[null,5,"Nombre de cadre de concertation fonctionnel",{"$f":"(Récapitulatif!D59+Récapitulatif!D60)/2","v":1}]
["D4",1,"Existance d'un SDAC",{"$f":"Récapitulatif!C61","v":0}]
[null,2,"Existance d'un PDC",{"$f":"(Récapitulatif!C62+(Récapitulatif!C64/Récapitulatif!C63))/2","v":0.53538011730977786}]
[null,3,"Nombre de reunions de suivi-évaluation du PTA/PAI/PAD",{"$f":"Récapitulatif!C65","v":2}]
[null,4,"Taux d'accroissement des infrastructures économiques et marchandes",{"$f":"(Récapitulatif!C66-Récapitulatif!C67)/Récapitulatif!C67","v":-0.375}]
[null,5,"Fonctionalité des organes de gestion fonciere aux niveaux communal et infra communal",{"$f":"((Récapitulatif!C69/Récapitulatif!C68)+(Récapitulatif!C71/Récapitulatif!C70))/2","v":0.96527777777777779}]
[null,6,"Existance d'un tableau de bord social actualisé",{"$f":"Récapitulatif!C72","v":0}]
[null,7,"Nombre d'accord de cooperation decentralisée mise en œuvre ",{"$f":"(Récapitulatif!C75+Récapitulatif!C76)/2","v":0.5}]
[null,8,"Taux de paiement des cotisations de la commune à l'intercommunalité",{"$f":"IF(Récapitulatif!C45=0,0,Récapitulatif!C44/Récapitulatif!C45)","v":0.55555555555555558}]
[null,9,"Nombre de contentieux fonciers impliquant la Mairie",{"$f":"Récapitulatif!D77","v":0.5}]
["D5",1,"Nombre de participations au CDCC",{"$f":"((Récapitulatif!C78/Récapitulatif!C79)+(Récapitulatif!C80/Récapitulatif!C81))/2","v":1}]
[null,2,"Taux de conformité des actes communaux",{"$f":"IF(Récapitulatif!C83=0,0,Récapitulatif!C82/Récapitulatif!C83)","v":0.88235294117647056}]
[null,3,"Transmission du budget dans les délais",{"$f":"SUM(Récapitulatif!C84:C86)/3","v":0.33333333333333331}]
[null,4,"Transmission du compte administratif dans les délais",{"$f":"SUM(Récapitulatif!C87:C89)/3","v":0.66666666666666663}]
[null,5,"Animation d'un cadre de concertation entre le maire et les services déconcentrés communaux",{"$f":"(Récapitulatif!E91+Récapitulatif!F91)/2","v":0.71614583333333326}]